[Event "Late-Titled-Tuesday-Blitz-January-16-2024"]
[Site "Chess.com"]
[Date "2024.01.16"]
[Round "7"]
[White "IraZyne"]
[Black "ThaBarWa"]
[Result "0-1"]
[WhiteElo "2253"]
[BlackElo "2397"]
[TimeControl "180+1"]
[EndTime "15:18:55 PST"]
[Termination "ThaBarWa won on time"]

1. e4 {[%clk 0:03:00.9]} 1... e6 {[%clk 0:03:00.9]} 2. d4 {[%clk 0:03:00.1]}
2... d5 {[%clk 0:03:01.6]} 3. exd5 {[%clk 0:03:00.4]} 3... exd5 {[%clk
0:03:02.5]} 4. Nf3 {[%clk 0:03:00.1]} 4... Nf6 {[%clk 0:03:03.1]} 5. Bd3 {[%clk
0:03:00.2]} 5... c5 {[%clk 0:03:00.7]} 6. c3 {[%clk 0:02:59.7]} 6... Nc6 {[%clk
0:02:59.4]} 7. dxc5 {[%clk 0:02:58.2]} 7... Bxc5 {[%clk 0:02:59]} 8. O-O {[%clk
0:02:58.1]} 8... O-O {[%clk 0:02:59.6]} 9. Nbd2 {[%clk 0:02:57.9]} 9... a6
{[%clk 0:02:55.7]} 10. h3 {[%clk 0:02:57.7]} 10... h6 {[%clk 0:02:55.5]} 11. Nb3
{[%clk 0:02:57.5]} 11... Ba7 {[%clk 0:02:56.1]} 12. Re1 {[%clk 0:02:57.5]} 12...
Be6 {[%clk 0:02:42.8]} 13. Be3 {[%clk 0:02:56.7]} 13... Bb8 {[%clk 0:02:33.4]}
14. Nc5 {[%clk 0:02:51.5]} 14... Bc8 {[%clk 0:02:28.2]} 15. Qc2 {[%clk
0:02:51.2]} 15... Qd6 {[%clk 0:02:18.9]} 16. Rad1 {[%clk 0:02:37.2]} 16... Ne5
{[%clk 0:02:02.3]} 17. Nxe5 {[%clk 0:02:29.6]} 17... Qxe5 {[%clk 0:02:03.2]} 18.
f4 {[%clk 0:02:29.7]} 18... Qh5 {[%clk 0:01:59.2]} 19. Qf2 {[%clk 0:02:21.6]}
19... b6 {[%clk 0:01:25.9]} 20. Nb3 {[%clk 0:02:20.4]} 20... Ne4 {[%clk
0:01:12.1]} 21. Bxe4 {[%clk 0:02:11.5]} 21... dxe4 {[%clk 0:01:13]} 22. Bxb6
{[%clk 0:02:09.9]} 22... Bb7 {[%clk 0:01:08.4]} 23. Be3 {[%clk 0:02:04.9]} 23...
Bc7 {[%clk 0:00:50.1]} 24. Rd7 {[%clk 0:02:01.4]} 24... Rac8 {[%clk 0:00:50.6]}
25. Nc5 {[%clk 0:01:42.6]} 25... Bc6 {[%clk 0:00:50.6]} 26. Rd2 {[%clk
0:01:38.1]} 26... a5 {[%clk 0:00:49.8]} 27. Red1 {[%clk 0:01:37.2]} 27... Kh7
{[%clk 0:00:41.1]} 28. Qe2 {[%clk 0:01:21.3]} 28... Qf5 {[%clk 0:00:33.9]} 29.
Rf1 {[%clk 0:01:18.8]} 29... Rcd8 {[%clk 0:00:24.6]} 30. g4 {[%clk 0:01:14.8]}
30... Qg6 {[%clk 0:00:22.9]} 31. f5 {[%clk 0:01:12.2]} 31... Qf6 {[%clk
0:00:23.3]} 32. Bd4 {[%clk 0:01:05.5]} 32... Qh4 {[%clk 0:00:21.2]} 33. Qe3
{[%clk 0:00:56.2]} 33... Rde8 {[%clk 0:00:14.5]} 34. f6 {[%clk 0:00:52.7]} 34...
g6 {[%clk 0:00:10.3]} 35. Rg2 {[%clk 0:00:45.3]} 35... Rc8 {[%clk 0:00:09]} 36.
g5 {[%clk 0:00:42.7]} 36... h5 {[%clk 0:00:09]} 37. Qf2 {[%clk 0:00:38.4]} 37...
Qxh3 {[%clk 0:00:08.6]} 38. Re1 {[%clk 0:00:29.2]} 38... e3 {[%clk 0:00:08.2]}
39. Rxe3 {[%clk 0:00:25.7]} 39... Qxg2+ {[%clk 0:00:07.4]} 40. Qxg2 {[%clk
0:00:26]} 40... Bxg2 {[%clk 0:00:08.2]} 41. Kxg2 {[%clk 0:00:26.4]} 41... Bb6
{[%clk 0:00:08.2]} 42. b4 {[%clk 0:00:24.9]} 42... axb4 {[%clk 0:00:08.1]} 43.
cxb4 {[%clk 0:00:24.5]} 43... Bxc5 {[%clk 0:00:08.8]} 44. Bxc5 {[%clk
0:00:24.2]} 44... Rfe8 {[%clk 0:00:09.7]} 45. Be7 {[%clk 0:00:23.3]} 45... Rc4
{[%clk 0:00:08.7]} 46. a4 {[%clk 0:00:21.6]} 46... Rg4+ {[%clk 0:00:08.9]} 47.
Rg3 {[%clk 0:00:20.8]} 47... Rc4 {[%clk 0:00:08.3]} 48. Kh3 {[%clk 0:00:18.9]}
48... Rec8 {[%clk 0:00:08.6]} 49. a5 {[%clk 0:00:16.9]} 49... Rc1 {[%clk
0:00:08.5]} 50. Re3 {[%clk 0:00:13.6]} 50... R8c2 {[%clk 0:00:07.6]} 51. Kg3
{[%clk 0:00:13]} 51... Rg1+ {[%clk 0:00:07.9]} 52. Kf4 {[%clk 0:00:12.8]} 52...
Ra1 {[%clk 0:00:08.2]} 53. Ke5 {[%clk 0:00:09.8]} 53... Raa2 {[%clk 0:00:03.6]}
54. Bc5 {[%clk 0:00:08.3]} 54... h4 {[%clk 0:00:02.7]} 55. Kd6 {[%clk
0:00:07.8]} 55... Rd2+ {[%clk 0:00:02.7]} 56. Kc6 {[%clk 0:00:07.2]} 56... Re2
{[%clk 0:00:03.6]} 57. Rh3 {[%clk 0:00:06.8]} 57... Rh2 {[%clk 0:00:03.9]} 58.
Re3 {[%clk 0:00:06]} 58... Rac2 {[%clk 0:00:04.4]} 59. a6 {[%clk 0:00:05.3]}
59... h3 {[%clk 0:00:04.6]} 60. a7 {[%clk 0:00:05.2]} 60... Ra2 {[%clk
0:00:05.4]} 61. Kb7 {[%clk 0:00:04.3]} 61... Rhb2 {[%clk 0:00:02.7]} 62. Rxh3+
{[%clk 0:00:04.3]} 62... Kg8 {[%clk 0:00:03.4]} 63. Rd3 {[%clk 0:00:03.6]} 63...
Ra1 {[%clk 0:00:02.3]} 64. Rd8+ {[%clk 0:00:03.2]} 64... Kh7 {[%clk 0:00:02.8]}
65. a8=Q {[%clk 0:00:02.7]} 65... Rxa8 {[%clk 0:00:03.7]} 66. Rxa8 {[%clk
0:00:02.6]} 66... Rxb4+ {[%clk 0:00:04.6]} 0-1

[Event "Late-Titled-Tuesday-Blitz-January-16-2024"]
[Site "Chess.com"]
[Date "2024.01.16"]
[Round "7"]
[White "Viktor_Poddubnyi"]
[Black "cristiancamilosoto"]
[Result "0-1"]
[WhiteElo "2262"]
[BlackElo "2402"]
[TimeControl "180+1"]
[EndTime "15:19:04 PST"]
[Termination "cristiancamilosoto won on time"]

1. e4 {[%clk 0:03:00]} 1... c5 {[%clk 0:02:29]} 2. Nf3 {[%clk 0:02:59.1]} 2...
e6 {[%clk 0:02:28.9]} 3. g3 {[%clk 0:02:58.6]} 3... Nc6 {[%clk 0:02:28.6]} 4.
Bg2 {[%clk 0:02:58.1]} 4... Nf6 {[%clk 0:02:28.6]} 5. e5 {[%clk 0:02:58.2]} 5...
Ng4 {[%clk 0:02:28.2]} 6. b4 {[%clk 0:02:58.4]} 6... Ngxe5 {[%clk 0:02:23.1]} 7.
Nxe5 {[%clk 0:02:57.7]} 7... Nxe5 {[%clk 0:02:23.3]} 8. bxc5 {[%clk 0:02:57.8]}
8... d5 {[%clk 0:02:16.2]} 9. cxd6 {[%clk 0:02:55.2]} 9... Bxd6 {[%clk 0:02:16]}
10. O-O {[%clk 0:02:55]} 10... O-O {[%clk 0:02:15.9]} 11. d4 {[%clk 0:02:55.1]}
11... Nc6 {[%clk 0:02:15.5]} 12. c4 {[%clk 0:02:47.8]} 12... Bd7 {[%clk
0:02:11.1]} 13. Nc3 {[%clk 0:02:43.6]} 13... Rc8 {[%clk 0:02:09.6]} 14. Be3
{[%clk 0:02:41.9]} 14... Na5 {[%clk 0:02:06.7]} 15. c5 {[%clk 0:02:40.6]} 15...
Be7 {[%clk 0:02:06.8]} 16. Qe2 {[%clk 0:02:12.1]} 16... Bc6 {[%clk 0:02:03.3]}
17. Ne4 {[%clk 0:02:09.2]} 17... f5 {[%clk 0:01:52]} 18. Nd2 {[%clk 0:02:03.7]}
18... Bxg2 {[%clk 0:01:51.7]} 19. Kxg2 {[%clk 0:02:04.6]} 19... Qd5+ {[%clk
0:01:51.8]} 20. Qf3 {[%clk 0:01:56.2]} 20... Rfd8 {[%clk 0:01:50.4]} 21. Rab1
{[%clk 0:01:47.3]} 21... Bf6 {[%clk 0:01:31.5]} 22. Rb5 {[%clk 0:01:15.1]} 22...
b6 {[%clk 0:01:27.5]} 23. a4 {[%clk 0:00:45.5]} 23... Qa2 {[%clk 0:01:06.7]} 24.
cxb6 {[%clk 0:00:31.9]} 24... Qxa4 {[%clk 0:01:05.7]} 25. Rfb1 {[%clk
0:00:18.7]} 25... axb6 {[%clk 0:01:04.9]} 26. Rxb6 {[%clk 0:00:18.5]} 26... Qd7
{[%clk 0:00:58.9]} 27. R6b5 {[%clk 0:00:14.8]} 27... Nc4 {[%clk 0:00:56.1]} 28.
Nxc4 {[%clk 0:00:14.6]} 28... Rxc4 {[%clk 0:00:55.9]} 29. Rb7 {[%clk 0:00:15.1]}
29... Rc7 {[%clk 0:00:55.7]} 30. Rxc7 {[%clk 0:00:14.2]} 30... Qxc7 {[%clk
0:00:56.6]} 31. Rd1 {[%clk 0:00:14]} 31... Qd6 {[%clk 0:00:55.2]} 32. Qe2 {[%clk
0:00:14.2]} 32... Qd5+ {[%clk 0:00:54.9]} 33. Kg1 {[%clk 0:00:14.2]} 33... e5
{[%clk 0:00:53.8]} 34. Re1 {[%clk 0:00:08.4]} 34... exd4 {[%clk 0:00:48.3]} 35.
Bd2 {[%clk 0:00:08.8]} 35... d3 {[%clk 0:00:46.9]} 36. Qe6+ {[%clk 0:00:07.8]}
36... Qxe6 {[%clk 0:00:46.8]} 37. Rxe6 {[%clk 0:00:08.7]} 37... Kf7 {[%clk
0:00:47.3]} 38. Ra6 {[%clk 0:00:08.6]} 38... h6 {[%clk 0:00:47]} 39. Kg2 {[%clk
0:00:07.7]} 39... Bg5 {[%clk 0:00:43.8]} 40. Bxg5 {[%clk 0:00:05.9]} 40... hxg5
{[%clk 0:00:42.7]} 41. Ra1 {[%clk 0:00:05.9]} 41... g4 {[%clk 0:00:39.3]} 42.
Kf1 {[%clk 0:00:05]} 42... Kf6 {[%clk 0:00:38.3]} 43. Ke1 {[%clk 0:00:05]} 43...
Re8+ {[%clk 0:00:37.1]} 44. Kd2 {[%clk 0:00:02.6]} 44... Re2+ {[%clk 0:00:36.8]}
45. Kxd3 {[%clk 0:00:02.9]} 45... Rxf2 {[%clk 0:00:37.5]} 46. Rh1 {[%clk
0:00:03.2]} 46... Kg5 {[%clk 0:00:37.4]} 47. Ke3 {[%clk 0:00:03.5]} 47... Rf3+
{[%clk 0:00:37.3]} 48. Ke2 {[%clk 0:00:03.6]} 48... Kf6 {[%clk 0:00:37.4]} 49.
Ra1 {[%clk 0:00:03.4]} 49... Rb3 {[%clk 0:00:36.5]} 50. Ra2 {[%clk 0:00:03.7]}
50... Kg5 {[%clk 0:00:34.2]} 51. Kf2 {[%clk 0:00:04.2]} 51... g6 {[%clk
0:00:33.2]} 52. Kg2 {[%clk 0:00:04.8]} 52... Kh5 {[%clk 0:00:33.6]} 53. Rc2
{[%clk 0:00:05.2]} 53... g5 {[%clk 0:00:33.4]} 54. Ra2 {[%clk 0:00:05.4]} 54...
f4 {[%clk 0:00:32.6]} 55. Rc2 {[%clk 0:00:05.3]} 55... f3+ {[%clk 0:00:30.2]}
56. Kf2 {[%clk 0:00:05.5]} 56... Rb1 {[%clk 0:00:30.5]} 57. Ra2 {[%clk
0:00:05.4]} 57... Rh1 {[%clk 0:00:30.3]} 58. Ke3 {[%clk 0:00:05.5]} 58... Rg1
{[%clk 0:00:27.6]} 59. Rb2 {[%clk 0:00:05.7]} 59... Rh1 {[%clk 0:00:25.6]} 60.
Ra2 {[%clk 0:00:05.7]} 60... Kg6 {[%clk 0:00:25.7]} 61. Rb2 {[%clk 0:00:05.5]}
61... Kf5 {[%clk 0:00:25.2]} 62. Ra2 {[%clk 0:00:05.6]} 62... Ke6 {[%clk
0:00:25]} 63. Rd2 {[%clk 0:00:05.4]} 63... Ke5 {[%clk 0:00:24.6]} 64. Ra2 {[%clk
0:00:05.1]} 64... Re1+ {[%clk 0:00:24.3]} 65. Kf2 {[%clk 0:00:04.8]} 65... Rd1
{[%clk 0:00:24.6]} 66. Rb2 {[%clk 0:00:04.4]} 66... Ke4 {[%clk 0:00:21.6]} 67.
Rb4+ {[%clk 0:00:04.4]} 67... Rd4 {[%clk 0:00:21.4]} 68. Rb2 {[%clk 0:00:04.2]}
68... Kd3 {[%clk 0:00:21.4]} 69. Ra2 {[%clk 0:00:04.1]} 69... Rc4 {[%clk
0:00:21.4]} 70. Rb2 {[%clk 0:00:03.9]} 70... Rc2+ {[%clk 0:00:18.9]} 71. Rxc2
{[%clk 0:00:03.9]} 71... Kxc2 {[%clk 0:00:19.8]} 72. h3 {[%clk 0:00:03.4]} 72...
gxh3 {[%clk 0:00:19.8]} 73. Kxf3 {[%clk 0:00:02.7]} 73... g4+ {[%clk 0:00:20.2]}
74. Kf2 {[%clk 0:00:02.4]} 74... Kd3 {[%clk 0:00:20.6]} 0-1

[Event "Late-Titled-Tuesday-Blitz-January-16-2024"]
[Site "Chess.com"]
[Date "2024.01.16"]
[Round "7"]
[White "jcibarra"]
[Black "mightysmasher"]
[Result "1-0"]
[WhiteElo "2871"]
[BlackElo "2564"]
[TimeControl "180+1"]
[EndTime "15:19:05 PST"]
[Termination "jcibarra won by checkmate"]

1. e4 {[%clk 0:03:00.9]} 1... e6 {[%clk 0:02:55.8]} 2. d4 {[%clk 0:03:00.6]}
2... d5 {[%clk 0:02:56.1]} 3. Nc3 {[%clk 0:03:00.5]} 3... dxe4 {[%clk
0:02:56.3]} 4. Nxe4 {[%clk 0:03:00.6]} 4... Nd7 {[%clk 0:02:57.2]} 5. Bd3 {[%clk
0:03:00.1]} 5... Ngf6 {[%clk 0:02:57.5]} 6. Qe2 {[%clk 0:03:00.4]} 6... c5
{[%clk 0:02:51.2]} 7. Nxf6+ {[%clk 0:02:58.9]} 7... Nxf6 {[%clk 0:02:51.1]} 8.
dxc5 {[%clk 0:02:59]} 8... Bxc5 {[%clk 0:02:50.9]} 9. Bg5 {[%clk 0:02:59.5]}
9... O-O {[%clk 0:02:46.7]} 10. O-O-O {[%clk 0:02:58.4]} 10... Qe7 {[%clk
0:02:45.3]} 11. Nf3 {[%clk 0:02:54]} 11... a6 {[%clk 0:02:44.3]} 12. Ne5 {[%clk
0:02:53.6]} 12... h6 {[%clk 0:02:37.9]} 13. Bh4 {[%clk 0:02:52.3]} 13... b5
{[%clk 0:02:23]} 14. f4 {[%clk 0:02:31.7]} 14... Bb7 {[%clk 0:02:17.8]} 15. Ng4
{[%clk 0:02:28]} 15... Bd4 {[%clk 0:01:51.6]} 16. Bh7+ {[%clk 0:01:48.5]} 16...
Kxh7 {[%clk 0:01:32.5]} 17. Rxd4 {[%clk 0:01:38.8]} 17... Rad8 {[%clk
0:01:19.4]} 18. Rhd1 {[%clk 0:01:37.9]} 18... Rxd4 {[%clk 0:01:08.7]} 19. Rxd4
{[%clk 0:01:38.5]} 19... Qc5 {[%clk 0:01:01.5]} 20. Qd3+ {[%clk 0:01:33.1]}
20... Ne4 {[%clk 0:00:43.2]} 21. Ne5 {[%clk 0:01:21]} 21... f5 {[%clk
0:00:20.8]} 22. Nd7 {[%clk 0:01:15.6]} 22... Qc8 {[%clk 0:00:21]} 23. Nxf8+
{[%clk 0:01:14.8]} 23... Qxf8 {[%clk 0:00:21.9]} 24. Rd8 {[%clk 0:01:01.6]}
24... Qc5 {[%clk 0:00:20.7]} 25. Qd4 {[%clk 0:00:59.8]} 25... Qxd4 {[%clk
0:00:17.4]} 26. Rxd4 {[%clk 0:00:59.2]} 26... Bd5 {[%clk 0:00:17.7]} 27. Be1
{[%clk 0:00:57.3]} 27... g5 {[%clk 0:00:16.6]} 28. g3 {[%clk 0:00:55.5]} 28...
Kg6 {[%clk 0:00:15]} 29. b3 {[%clk 0:00:55]} 29... Nd6 {[%clk 0:00:08.6]} 30.
Bb4 {[%clk 0:00:50.7]} 30... Ne4 {[%clk 0:00:08.9]} 31. c4 {[%clk 0:00:50.3]}
31... bxc4 {[%clk 0:00:09.8]} 32. bxc4 {[%clk 0:00:51.2]} 32... Bc6 {[%clk
0:00:10.2]} 33. Be1 {[%clk 0:00:49.1]} 33... gxf4 {[%clk 0:00:09.9]} 34. gxf4
{[%clk 0:00:49.2]} 34... Kh5 {[%clk 0:00:09.7]} 35. h3 {[%clk 0:00:47.7]} 35...
Kg6 {[%clk 0:00:06.6]} 36. Rd8 {[%clk 0:00:45.2]} 36... Kf7 {[%clk 0:00:06.4]}
37. Rc8 {[%clk 0:00:43.3]} 37... Bd7 {[%clk 0:00:05.3]} 38. Rc7 {[%clk
0:00:39.5]} 38... Ke8 {[%clk 0:00:05]} 39. Ra7 {[%clk 0:00:38.1]} 39... Nc5
{[%clk 0:00:04]} 40. Kd2 {[%clk 0:00:34.1]} 40... Ne4+ {[%clk 0:00:03.4]} 41.
Ke3 {[%clk 0:00:34]} 41... Nc5 {[%clk 0:00:03.7]} 42. Kd4 {[%clk 0:00:33.8]}
42... Ne4 {[%clk 0:00:03.7]} 43. Rxa6 {[%clk 0:00:31.4]} 43... Kd8 {[%clk
0:00:04.6]} 44. Ra7 {[%clk 0:00:28.8]} 44... Ke8 {[%clk 0:00:04.4]} 45. a4
{[%clk 0:00:28.3]} 45... Kd8 {[%clk 0:00:04.9]} 46. a5 {[%clk 0:00:28.8]} 46...
Kc8 {[%clk 0:00:05.4]} 47. a6 {[%clk 0:00:28.7]} 47... h5 {[%clk 0:00:05.9]} 48.
Ba5 {[%clk 0:00:26.3]} 48... Nd6 {[%clk 0:00:03]} 49. Rc7+ {[%clk 0:00:22.9]}
49... Kd8 {[%clk 0:00:03.3]} 50. a7 {[%clk 0:00:21.6]} 50... Ke7 {[%clk
0:00:02.5]} 51. Bb4 {[%clk 0:00:19.4]} 51... e5+ {[%clk 0:00:02.4]} 52. fxe5
{[%clk 0:00:19.4]} 52... Kd8 {[%clk 0:00:03.3]} 53. Bxd6 {[%clk 0:00:19.5]}
53... Be6 {[%clk 0:00:03.9]} 54. a8=Q+ {[%clk 0:00:19.4]} 54... Bc8 {[%clk
0:00:03.7]} 55. e6 {[%clk 0:00:18.9]} 55... f4 {[%clk 0:00:02.8]} 56. Bxf4
{[%clk 0:00:15.7]} 56... h4 {[%clk 0:00:02.7]} 57. Bd6 {[%clk 0:00:15.5]} 57...
Ke8 {[%clk 0:00:03]} 58. Ke5 {[%clk 0:00:15.5]} 58... Kd8 {[%clk 0:00:02.4]} 59.
Rh7 {[%clk 0:00:14.5]} 59... Ke8 {[%clk 0:00:02.7]} 60. Qc6+ {[%clk 0:00:14.4]}
60... Kd8 {[%clk 0:00:03.2]} 61. Rxh4 {[%clk 0:00:10.3]} 61... Bxe6 {[%clk
0:00:02.4]} 62. Qc7+ {[%clk 0:00:08.5]} 62... Ke8 {[%clk 0:00:02.6]} 63. c5
{[%clk 0:00:08.3]} 63... Bd7 {[%clk 0:00:02.6]} 64. Rh7 {[%clk 0:00:08]} 64...
Bc6 {[%clk 0:00:03.5]} 65. h4 {[%clk 0:00:08]} 65... Bd7 {[%clk 0:00:03.8]} 66.
h5 {[%clk 0:00:08.4]} 66... Bc6 {[%clk 0:00:04.7]} 67. Rg7 {[%clk 0:00:08.8]}
67... Bd7 {[%clk 0:00:05.6]} 68. h6 {[%clk 0:00:09.3]} 68... Bc6 {[%clk
0:00:06.5]} 69. Bf8 {[%clk 0:00:09.3]} 69... Bd7 {[%clk 0:00:07.4]} 70. h7
{[%clk 0:00:09.7]} 70... Bc6 {[%clk 0:00:08.3]} 71. h8=Q {[%clk 0:00:09.9]}
71... Bd7 {[%clk 0:00:09.2]} 72. Qd6 {[%clk 0:00:08.9]} 72... Bc6 {[%clk
0:00:10.1]} 73. Kf6 {[%clk 0:00:09.4]} 73... Bd7 {[%clk 0:00:10.8]} 74. Qg8
{[%clk 0:00:09.6]} 74... Bc6 {[%clk 0:00:11.7]} 75. Qxc6+ {[%clk 0:00:08.5]}
75... Kd8 {[%clk 0:00:11.7]} 76. Qd6+ {[%clk 0:00:08.1]} 76... Ke8 {[%clk
0:00:12.2]} 77. Qge6# {[%clk 0:00:05.9]} 1-0

[Event "Late-Titled-Tuesday-Blitz-January-16-2024"]
[Site "Chess.com"]
[Date "2024.01.16"]
[Round "7"]
[White "BardArtem"]
[Black "GulamaliRises"]
[Result "1-0"]
[WhiteElo "2814"]
[BlackElo "2618"]
[TimeControl "180+1"]
[EndTime "15:19:09 PST"]
[Termination "BardArtem won by resignation"]

1. e4 {[%clk 0:03:00.9]} 1... g6 {[%clk 0:02:43.7]} 2. d4 {[%clk 0:02:58.1]}
2... Bg7 {[%clk 0:02:44.6]} 3. Nc3 {[%clk 0:02:58.6]} 3... d6 {[%clk 0:02:45.1]}
4. Nf3 {[%clk 0:02:58.2]} 4... Nf6 {[%clk 0:02:44.3]} 5. Bg5 {[%clk 0:02:57.1]}
5... h6 {[%clk 0:02:43.6]} 6. Bh4 {[%clk 0:02:56.4]} 6... g5 {[%clk 0:02:41.3]}
7. Bg3 {[%clk 0:02:55.7]} 7... Nh5 {[%clk 0:02:41.8]} 8. Be2 {[%clk 0:02:50.4]}
8... e6 {[%clk 0:02:37.7]} 9. Qd2 {[%clk 0:02:43.8]} 9... Qe7 {[%clk 0:02:37.1]}
10. O-O-O {[%clk 0:02:43.5]} 10... a6 {[%clk 0:02:31.7]} 11. h4 {[%clk
0:02:27.6]} 11... Nxg3 {[%clk 0:02:27.6]} 12. fxg3 {[%clk 0:02:27.7]} 12... g4
{[%clk 0:02:28.5]} 13. Nh2 {[%clk 0:02:25.7]} 13... h5 {[%clk 0:02:29.1]} 14.
Rhf1 {[%clk 0:02:16.5]} 14... Bh6 {[%clk 0:02:18.6]} 15. Rf4 {[%clk 0:02:13.9]}
15... b5 {[%clk 0:01:48.1]} 16. e5 {[%clk 0:02:05.8]} 16... Bb7 {[%clk
0:01:45.8]} 17. Rdf1 {[%clk 0:02:01.6]} 17... Nd7 {[%clk 0:01:25.4]} 18. Kb1
{[%clk 0:01:45.7]} 18... b4 {[%clk 0:01:06.3]} 19. Nd1 {[%clk 0:01:31.6]} 19...
dxe5 {[%clk 0:01:05.9]} 20. dxe5 {[%clk 0:01:28.2]} 20... Bxf4 {[%clk
0:01:02.1]} 21. Rxf4 {[%clk 0:01:24.1]} 21... c5 {[%clk 0:00:46.5]} 22. Qe3
{[%clk 0:01:16.8]} 22... Bxg2 {[%clk 0:00:36.3]} 23. Nf2 {[%clk 0:01:14.9]}
23... Bd5 {[%clk 0:00:34.4]} 24. Bc4 {[%clk 0:01:11.6]} 24... Nb6 {[%clk
0:00:25.4]} 25. Bd3 {[%clk 0:01:09.6]} 25... O-O-O {[%clk 0:00:23.1]} 26. b3
{[%clk 0:01:07.7]} 26... Kb7 {[%clk 0:00:22.7]} 27. Nf1 {[%clk 0:01:05.1]} 27...
Rd7 {[%clk 0:00:21.4]} 28. Nd2 {[%clk 0:01:04.9]} 28... Rc8 {[%clk 0:00:21.6]}
29. Nde4 {[%clk 0:01:04.9]} 29... c4 {[%clk 0:00:22.1]} 30. Nd6+ {[%clk
0:01:02.6]} 30... Rxd6 {[%clk 0:00:20.3]} 31. exd6 {[%clk 0:01:03.5]} 31... Qxd6
{[%clk 0:00:21.2]} 32. Rxf7+ {[%clk 0:01:02.9]} 32... Kb8 {[%clk 0:00:21.8]} 33.
Ne4 {[%clk 0:00:59.7]} 33... Bxe4 {[%clk 0:00:17.7]} 34. Bxe4 {[%clk 0:00:53]}
34... Qd1+ {[%clk 0:00:14.2]} 35. Qc1 {[%clk 0:00:53.4]} 35... Qxc1+ {[%clk
0:00:14.7]} 36. Kxc1 {[%clk 0:00:54.3]} 36... Nd5 {[%clk 0:00:11.2]} 37. Bxd5
{[%clk 0:00:47.5]} 37... exd5 {[%clk 0:00:12.1]} 38. Rf5 {[%clk 0:00:47.4]}
38... c3 {[%clk 0:00:08.2]} 39. Kd1 {[%clk 0:00:42.1]} 39... Re8 {[%clk
0:00:05.9]} 40. Rxh5 {[%clk 0:00:31.1]} 40... Re3 {[%clk 0:00:05.9]} 41. Rxd5
{[%clk 0:00:31.8]} 41... Rxg3 {[%clk 0:00:05.8]} 42. Rd4 {[%clk 0:00:29.6]}
42... a5 {[%clk 0:00:04.2]} 43. Rd5 {[%clk 0:00:30.2]} 43... Rg1+ {[%clk
0:00:03.8]} 44. Ke2 {[%clk 0:00:30.2]} 44... Rg2+ {[%clk 0:00:04.7]} 45. Kd1
{[%clk 0:00:23.7]} 45... g3 {[%clk 0:00:01.8]} 46. Rxa5 {[%clk 0:00:17.6]} 46...
Kc7 {[%clk 0:00:02.4]} 47. Rg5 {[%clk 0:00:14.5]} 47... Rd2+ {[%clk 0:00:02.7]}
48. Ke1 {[%clk 0:00:12.5]} 48... g2 {[%clk 0:00:03.4]} 49. h5 {[%clk 0:00:09.3]}
49... Rxc2 {[%clk 0:00:03.9]} 50. h6 {[%clk 0:00:09.7]} 50... Rxa2 {[%clk
0:00:03.9]} 51. h7 {[%clk 0:00:09.8]} 51... Ra8 {[%clk 0:00:04.6]} 52. Rxg2
{[%clk 0:00:05.9]} 52... Rh8 {[%clk 0:00:05.1]} 53. Rg4 {[%clk 0:00:05.2]} 53...
Rxh7 {[%clk 0:00:04.7]} 54. Rxb4 {[%clk 0:00:05.6]} 54... Kd6 {[%clk 0:00:04.9]}
55. Rc4 {[%clk 0:00:02.2]} 55... Rh1+ {[%clk 0:00:03.6]} 56. Ke2 {[%clk
0:00:02.5]} 56... Rh2+ {[%clk 0:00:04]} 57. Kd3 {[%clk 0:00:03.1]} 57... Rh3+
{[%clk 0:00:04.6]} 58. Kc2 {[%clk 0:00:03.2]} 58... Rh2+ {[%clk 0:00:04.6]} 59.
Kxc3 {[%clk 0:00:03.5]} 59... Rh3+ {[%clk 0:00:05.5]} 60. Kb4 {[%clk 0:00:04.1]}
60... Rh8 {[%clk 0:00:06.4]} 61. Rc1 {[%clk 0:00:03.7]} 61... Rb8+ {[%clk
0:00:07]} 62. Ka3 {[%clk 0:00:04.4]} 62... Ra8+ {[%clk 0:00:07.4]} 63. Kb2
{[%clk 0:00:05.1]} 63... Rb8 {[%clk 0:00:07.4]} 64. Rc4 {[%clk 0:00:05.6]} 64...
Kd5 {[%clk 0:00:07.9]} 65. Kc3 {[%clk 0:00:05.7]} 65... Rf8 {[%clk 0:00:08.5]}
66. Kb2 {[%clk 0:00:04.4]} 66... Rb8 {[%clk 0:00:08.2]} 67. Rc1 {[%clk
0:00:04.5]} 67... Ra8 {[%clk 0:00:08.7]} 68. Rc2 {[%clk 0:00:04.3]} 68... Kd4
{[%clk 0:00:09.1]} 69. Rc3 {[%clk 0:00:03.8]} 69... Ra7 {[%clk 0:00:08.9]} 70.
Rc8 {[%clk 0:00:03.9]} 70... Rb7 {[%clk 0:00:09.1]} 71. Rc4+ {[%clk 0:00:03]}
71... Kd3 {[%clk 0:00:09.6]} 72. Rc8 {[%clk 0:00:02.8]} 72... Rb6 {[%clk
0:00:09.9]} 73. Rd8+ {[%clk 0:00:03.2]} 73... Ke4 {[%clk 0:00:10]} 74. Kc3
{[%clk 0:00:03.8]} 74... Rc6+ {[%clk 0:00:10.5]} 75. Kb4 {[%clk 0:00:04.4]}
75... Rb6+ {[%clk 0:00:11.4]} 76. Kc4 {[%clk 0:00:05]} 76... Rc6+ {[%clk
0:00:11.8]} 77. Kb5 {[%clk 0:00:05.6]} 77... Rc7 {[%clk 0:00:11.9]} 78. b4
{[%clk 0:00:05.6]} 78... Rb7+ {[%clk 0:00:12.5]} 79. Kc5 {[%clk 0:00:06.1]}
79... Ke5 {[%clk 0:00:12]} 80. Re8+ {[%clk 0:00:05.5]} 1-0